bitfinex-derivatives/quotes_SOLF0:USTF0_20250904
["timestamp","ask_amount","ask_price","bid_price","bid_amount"]
[1757008298773,7.63,204.36,204.32,7.60599717]
[1757008299868,7.63,204.36,204.33,7.57]
[1757008300068,7.63,204.36,204.34,4.52593649]
[1757008300268,7.63,204.36,204.33,7.57]
[1757008300574,7.63,204.36,204.34,4.52603168]
[1757008300768,7.63,204.36,204.33,7.57]
[1757008300769,9.56207565,204.37,204.33,7.57]
[1757008300966,7.63,204.36,204.34,4.52603168]
[1757008301171,7.63,204.36,204.33,7.57]
[1757008301371,1.93207565,204.37,204.34,4.52609881]
[1757008301573,1.93207565,204.37,204.34,7.57]
[1757008301772,1.93207565,204.37,204.32,0.03599717]
[1757008301972,1.93207565,204.4,204.34,7.57]
[1757008302177,1.93207565,204.4,204.35,4.52603288]
[1757008302374,1.93207565,204.4,204.35,1.93207565]
[1757008302574,9.56207565,204.42,204.36,12.09542254]
[1757008302871,1.93207565,204.42,204.37,7.57]
[1757008303068,1.93207565,204.42,204.37,0.03164518]
[1757008303270,9.56207565,204.42,204.38,7.57]
[1757008303475,1.93207565,204.42,204.37,0.03164518]
[1757008303673,7.63,204.41,204.37,7.60164518]
[1757008304074,7.63,204.41,204.38,7.57]
[1757008304576,7.63,204.41,204.37,0.03164518]
[1757008304577,1.93207565,204.42,204.37,0.03164518]
[1757008304975,7.63,204.41,204.37,0.03164518]
[1757008305568,1.93207565,204.42,204.37,7.60164518]
[1757008305980,9.56207565,204.42,204.37,0.03164518]
[1757008306183,9.56207565,204.42,204.38,7.57]
[1757008306476,7.63,204.41,204.38,7.57]
[1757008307180,7.63,204.41,204.37,0.03164518]
[1757008307380,1.93207565,204.42,204.37,0.03164518]
[1757008307781,7.35,204.39,204.37,0.03164518]
[1757008309378,7.35,204.43,204.37,0.03164518]
[1757008309576,9.28207565,204.4,204.37,0.03164518]
[1757008312785,1.93207565,204.4,204.37,0.03164518]
[1757008312984,7.35,204.39,204.37,0.03164518]
[1757008314584,7.35,204.39,204.37,7.44164518]
[1757008317584,7.35,204.41,204.38,7.41]
[1757008318685,1.93207565,204.42,204.38,7.41]
[1757008318885,7.35,204.41,204.38,7.41]
[1757008319084,1.93207565,204.42,204.38,7.41]
[1757008319282,7.35,204.41,204.38,7.41]
[1757008319587,1.93207565,204.42,204.37,0.03164518]
[1757008320190,7.35,204.41,204.37,0.03164518]
[1757008320392,1.93207565,204.42,204.37,7.44164518]
[1757008320588,7.35,204.41,204.37,7.44164518]
[1757008320986,1.93207565,204.42,204.37,7.44164518]
[1757008321893,1.93207565,204.4,204.37,7.44164518]
[1757008324194,1.93207565,204.4,204.38,7.41]
[1757008324392,1.93207565,204.4,204.37,0.03164518]
[1757008324596,9.28207565,204.42,204.37,0.03164518]
[1757008324798,7.35,204.41,204.38,7.41]
[1757008325297,7.35,204.4,204.38,7.41]
[1757008325687,0.85179293,204.46,204.38,7.41]
[1757008325997,1.93207565,204.45,204.4,7.41]
[1757008326602,1.93207565,204.51,204.44,7.41]
[1757008326804,7.35,204.52,204.47,1.93207565]
[1757008327099,0.85135532,204.57,204.5,7.41]
[1757008327290,2.78343097,204.57,204.5,7.41]
[1757008327490,0.0368732,204.52,204.5,7.41]
[1757008327887,0.0368732,204.52,204.51,9.37473147]
[1757008328092,0.0368732,204.52,204.51,14.27329599]
[1757008328299,0.0368732,204.52,204.51,18.10259411]
[1757008328494,318.02322274,204.62,204.51,18.58259411]
[1757008328703,318.02322274,204.62,204.56,9.34207565]
[1757008328704,317.17207565,204.62,204.56,9.34207565]
[1757008329001,324.52207565,204.62,204.56,9.34207565]
[1757008329296,7.35,204.69,204.57,7.41]
[1757008329596,1.93207565,204.65,204.58,1.93207565]
[1757008329800,1.93207565,204.65,204.61,0.03735964]
[1757008330297,7.35,204.62,204.61,0.03735964]
[1757008331096,1.93207565,204.63,204.61,0.03735964]
[1757008331296,7.35,204.62,204.61,0.03735964]
[1757008332998,9.28207565,204.62,204.61,0.03735964]
[1757008336903,7.35,204.62,204.61,0.03735964]
[1757008337104,1.93207565,204.64,204.61,0.03735964]
[1757008337505,7.35,204.65,204.61,0.03735964]
[1757008337707,7.35,204.65,204.62,7.48]
[1757008337910,7.35,204.65,204.61,7.51735964]
[1757008340803,9.49207565,204.64,204.61,7.51735964]
[1757008341206,9.49207565,204.64,204.61,0.03735964]
[1757008341808,1.93207565,204.62,204.61,0.03735964]
[1757008342109,9.49207565,204.62,204.61,0.03735964]
[1757008344111,7.56,204.62,204.61,0.03735964]
[1757008344302,9.49207565,204.62,204.61,0.03735964]
[1757008346407,7.56,204.62,204.61,0.03735964]
[1757008346610,1.93207565,204.65,204.61,0.03735964]
[1757008346815,9.49207565,204.65,204.61,7.51735964]
[1757008347017,9.49207565,204.65,204.62,7.48]
[1757008349119,0.85082454,204.67,204.61,0.03735964]
[1757008349415,1.93207565,204.67,204.62,7.48]
[1757008349613,7.56,204.69,204.62,7.48]
[1757008353110,10.57038624,204.69,204.62,7.48]
[1757008353307,10.57038624,204.69,204.61,0.03735964]
[1757008356513,3.01038624,204.66,204.61,0.03735964]
[1757008356713,7.56,204.65,204.61,0.03735964]
[1757008356918,3.01038624,204.66,204.61,0.03735964]
[1757008357223,7.56,204.65,204.61,0.03735964]
[1757008357616,3.01038624,204.66,204.61,0.03735964]
[1757008357816,7.56,204.65,204.61,0.03735964]
[1757008358016,3.01038624,204.66,204.61,0.03735964]
[1757008358724,7.56,204.65,204.61,0.03735964]
[1757008359025,7.56,204.65,204.61,7.51735964]
[1757008359411,3.01038624,204.66,204.61,7.51735964]
[1757008359822,7.56,204.65,204.61,7.51735964]
[1757008361823,7.56,204.65,204.62,7.48]
[1757008363026,7.56,204.65,204.61,7.51735964]
[1757008364526,7.56,204.65,204.62,7.48]
[1757008365429,3.01038624,204.66,204.61,0.03735964]
[1757008366028,7.56,204.65,204.61,7.51735964]
[1757008367422,7.56,204.65,204.62,7.48]
[1757008368025,3.01038624,204.66,204.61,0.03735964]
[1757008369122,7.4,204.65,204.61,0.03735964]
[1757008369325,3.01038624,204.66,204.61,7.63735964]
[1757008369526,7.4,204.65,204.61,0.03735964]
[1757008369729,7.4,204.62,204.61,0.03735964]
[1757008372428,10.41038624,204.62,204.61,0.03735964]
[1757008377335,10.41038624,204.62,204.52,7.6]
[1757008377528,3.01038624,204.59,204.53,3.87915784]
[1757008377731,10.41038624,204.59,204.55,7.6]
[1757008378031,10.41038624,204.59,204.56,11.95398422]
[1757008378332,7.4,204.59,204.56,7.6]
[1757008378530,3.01038624,204.61,204.55,0.03754144]
[1757008378724,3.01038624,204.61,204.56,4.35286616]
[1757008378923,3.01038624,204.61,204.55,7.63754144]
[1757008379128,7.4,204.6,204.56,11.95286616]
[1757008379434,7.4,204.6,204.56,7.6]
[1757008380035,7.4,204.6,204.57,4.35251507]
[1757008380231,7.4,204.6,204.56,7.6]
[1757008380436,7.4,204.6,204.57,11.95251316]
[1757008380632,7.4,204.6,204.57,7.6]
[1757008381136,7.4,204.6,204.55,0.03754144]
[1757008381330,3.01038624,204.61,204.56,4.35255812]
[1757008381632,10.41038624,204.61,204.55,0.03754144]
[1757008381835,10.41038624,204.61,204.56,4.35223897]
[1757008382027,10.41038624,204.61,204.55,7.63754144]
[1757008382227,7.4,204.61,204.56,4.35223897]
[1757008382434,3.01038624,204.62,204.56,7.6]
[1757008383335,7.4,204.63,204.56,7.6]
[1757008383531,7.4,204.63,204.57,4.35149555]
[1757008383736,7.4,204.63,204.59,7.6]
[1757008383938,7.4,204.63,204.56,7.6]
[1757008384236,3.01038624,204.64,204.58,7.6]
[1757008384430,3.01038624,204.64,204.6,7.6]
[1757008384630,10.41038624,204.64,204.6,7.6]
[1757008384942,10.41038624,204.64,204.6,7.6352719]
[1757008388537,3.01038624,204.64,204.6,7.6352719]
[1757008388744,7.4,204.63,204.6,7.6352719]
[1757008389340,7.4,204.63,204.6,0.0352719]
[1757008389637,7.4,204.63,204.61,7.6]
[1757008390142,7.4,204.63,204.6,0.0352719]
[1757008391042,3.01038624,204.64,204.6,0.0352719]
[1757008391242,7.4,204.63,204.6,0.0352719]
[1757008391741,3.01038624,204.64,204.6,0.0352719]
[1757008393148,7.4,204.63,204.6,0.0352719]
[1757008393444,3.01038624,204.64,204.6,0.0352719]
[1757008393645,7.4,204.63,204.6,0.0352719]
[1757008393849,3.01038624,204.64,204.6,0.0352719]
[1757008394942,3.01038624,204.61,204.6,0.0352719]
[1757008395143,10.41038624,204.61,204.6,0.0352719]
[1757008395349,10.41038624,204.61,204.54,7.6]
[1757008397047,7.4,204.57,204.46,7.6]
[1757008397243,7.4,204.57,204.48,7.6]
[1757008397450,7.4,204.57,204.49,8.90799571]
[1757008397644,7.4,204.57,204.5,16.50799571]
[1757008397843,0.03324797,204.55,204.51,4.34503418]
[1757008398051,0.03324797,204.55,204.45,7.87]
[1757008398240,0.03324797,204.55,204.44,3.01038624]
[1757008398241,0.03324797,204.55,204.47,7.87]
[1757008398442,0.03324797,204.55,204.49,7.87]
[1757008398643,0.03324797,204.55,204.45,7.87]
[1757008398843,0.03324797,204.55,204.47,7.87]
[1757008399045,0.03324797,204.55,204.49,7.87]
[1757008404158,0.03324797,204.55,204.51,7.87]
[1757008404458,0.03324797,204.55,204.53,7.87]
[1757008404658,0.03324797,204.55,204.51,7.87]
[1757008404954,0.03324797,204.55,204.53,7.87]
[1757008405154,0.03324797,204.55,204.51,7.87]
[1757008405451,0.03324797,204.55,204.53,7.87]
[1757008405648,0.03324797,204.55,204.51,7.87]
[1757008405846,0.03324797,204.55,204.53,7.87]
[1757008406756,0.03324797,204.55,204.54,11.75153851]
[1757008409363,0.03324797,204.55,204.54,7.87]
[1757008411058,0.03324797,204.55,204.54,11.75307668]
[1757008411561,0.03324797,204.55,204.54,13.68104273]
[1757008412056,0.03324797,204.55,204.54,18.22393971]
[1757008412561,0.03324797,204.55,204.54,18.22447094]
[1757008416061,0.03324797,204.55,204.54,16.29650489]
[1757008418664,0.03324797,204.55,204.54,16.29797637]
[1757008421758,0.03324797,204.55,204.54,12.41489969]
[1757008422564,0.03324797,204.55,204.54,16.30000561]
[1757008424164,0.03324797,204.55,204.54,18.22797166]
[1757008425271,8.03,204.64,204.55,7.87]
[1757008425466,1.92796605,204.63,204.58,7.87]
[1757008425769,1.92796605,204.61,204.55,7.87]
[1757008426473,8.03,204.6,204.56,7.90556758]
[1757008429375,9.95796605,204.6,204.56,7.90556758]
[1757008430075,7.62,204.59,204.56,7.90556758]
[1757008431178,7.62,204.57,204.56,0.03556758]
[1757008436282,7.62,204.66,204.57,7.98]
[1757008436488,1.92796605,204.65,204.58,5.81282797]
[1757008436688,1.92796605,204.65,204.58,1.92796605]
[1757008436882,7.62,204.64,204.59,0.03583798]
[1757008437086,9.54796605,204.63,204.59,0.03583798]
[1757008437282,1.92796605,204.63,204.59,0.03583798]
[1757008437488,9.54796605,204.63,204.59,0.03583798]
[1757008438387,7.62,204.62,204.59,0.03583798]
[1757008439680,1.92796605,204.61,204.59,0.03583798]
[1757008439886,7.62,204.6,204.59,0.03583798]
[1757008441178,1.92796605,204.62,204.59,8.01583798]
[1757008441382,9.54796605,204.62,204.59,8.01583798]
[1757008441578,1.92796605,204.62,204.59,0.03583798]
[1757008441982,7.62,204.61,204.59,0.03583798]
[1757008443480,1.92796605,204.62,204.59,0.03583798]
[1757008443682,9.54796605,204.6,204.59,0.03583798]
[1757008444490,9.54796605,204.6,204.52,7.98]
[1757008444491,10.02796605,204.6,204.52,7.98]
[1757008444792,9.54796605,204.56,204.49,9.90796605]
[1757008445085,1.92796605,204.58,204.52,7.98]
[1757008445287,9.54796605,204.6,204.54,7.98]
[1757008445486,1.92796605,204.6,204.55,1.92796605]
[1757008445791,0.03552311,204.59,204.55,1.92796605]
[1757008446192,0.03552311,204.59,204.56,7.98]
[1757008446382,0.03552311,204.59,204.55,1.92796605]
[1757008446586,0.03552311,204.59,204.57,7.98]
[1757008450089,0.03552311,204.59,204.55,1.92796605]
[1757008450294,0.03552311,204.59,204.56,7.98]
[1757008451692,0.03552311,204.59,204.58,7.98]
[1757008451889,1.92796605,204.63,204.57,1.92796605]
[1757008452086,0.03416787,204.61,204.58,7.98]
[1757008452490,0.03416787,204.61,204.57,1.92796605]
[1757008452694,0.03416787,204.61,204.58,8.43480494]
[1757008452891,0.03416787,204.61,204.58,7.98]
[1757008453091,0.03416787,204.61,204.59,1.92796605]
[1757008453297,0.03416787,204.61,204.6,7.98]
[1757008453597,1.96213392,204.61,204.54,7.98]
[1757008453797,1.96213392,204.61,204.55,10.36347351]
[1757008454005,9.58213392,204.61,204.57,7.98]
[1757008454397,1.96213392,204.61,204.55,1.92796605]
[1757008454608,1.96213392,204.61,204.57,7.98]
[1757008454808,1.96213392,204.61,204.56,7.98]
[1757008455005,1.96213392,204.61,204.58,7.98]
[1757008457705,9.96213392,204.61,204.53,9.64796605]
[1757008457910,1.92796605,204.57,204.54,8.4355535]
[1757008458112,1.92796605,204.57,204.52,7.72]
[1757008458412,1.92796605,204.57,204.54,7.72]
[1757008458610,1.92796605,204.57,204.51,1.92796605]
[1757008458813,1.92796605,204.57,204.53,7.72]
[1757008459008,1.92796605,204.57,204.55,7.72]
[1757008459905,0.03650098,204.58,204.55,7.72]
[1757008460110,1.92796605,204.57,204.55,7.72]
[1757008462912,0.03650098,204.58,204.55,7.72]
[1757008463104,1.92796605,204.57,204.55,7.72]
[1757008463310,1.92796605,204.57,204.5,7.72]
[1757008463611,1.92796605,204.57,204.51,8.43495564]
[1757008463810,1.92796605,204.57,204.53,7.72]
[1757008464114,9.92796605,204.55,204.54,3.88941437]
[1757008464712,1.92796605,204.55,204.54,3.88941437]
[1757008464914,9.92796605,204.55,204.51,7.72]
[1757008465108,1.92796605,204.54,204.52,8.43504618]
[1757008465308,1.92796605,204.54,204.53,3.88943405]
[1757008466404,1.92796605,204.54,204.46,1.92796605]
[1757008466405,8.0,204.53,204.47,7.72]
[1757008466615,1.92796605,204.5,204.48,8.43126428]
[1757008466812,1.92796605,204.5,204.45,7.72]
[1757008467115,1.92796605,204.5,204.47,7.72]
[1757008467307,1.92796605,204.5,204.48,11.60927669]
[1757008467506,1.92796605,204.5,204.49,3.88749126]
[1757008468313,1.92796605,204.5,204.45,7.72]
[1757008468515,1.92796605,204.5,204.46,8.42463179]
[1757008468714,1.92796605,204.5,204.47,16.14463179]
[1757008468916,1.92796605,204.5,204.48,8.42463179]
[1757008469209,1.92796605,204.5,204.47,7.72]
[1757008469210,1.92796605,204.5,204.45,7.72]
[1757008469415,1.92796605,204.5,204.47,7.72]
[1757008469604,1.92796605,204.5,204.48,11.60517671]
[1757008469811,1.92796605,204.5,204.48,7.72]
[1757008471517,8.0,204.51,204.48,7.72]
[1757008472914,8.0,204.51,204.42,4.11441068]
[1757008473115,8.0,204.51,204.44,7.72]
[1757008473315,8.0,204.51,204.45,8.41728152]
[1757008473518,0.03416811,204.5,204.47,7.72]
[1757008473713,0.03416811,204.5,204.49,7.72]
[1757008473923,3.01550558,204.55,204.49,7.72]
[1757008474125,0.03208734,204.52,204.49,7.72]
[1757008474721,0.03208734,204.52,204.44,7.72]
[1757008475024,0.03208734,204.52,204.46,7.72]
[1757008475214,0.03208734,204.52,204.47,8.41446212]
[1757008475419,0.03208734,204.52,204.49,7.72]
[1757008476820,8.03208734,204.52,204.49,7.72]
[1757008477620,3.04759292,204.52,204.44,7.72]
[1757008477819,3.04759292,204.52,204.45,8.41186035]
[1757008478015,3.04759292,204.52,204.46,8.41186035]
[1757008478322,8.0,204.51,204.47,16.13186035]
[1757008478521,8.0,204.51,204.43,7.72]
[1757008478723,8.0,204.51,204.45,7.72]
[1757008478925,8.0,204.51,204.47,7.72]
[1757008479425,8.0,204.51,204.43,7.72]
[1757008479625,8.0,204.51,204.45,7.72]
[1757008479822,8.0,204.51,204.47,7.72]
[1757008480220,3.04759292,204.52,204.47,7.72]
[1757008480622,8.0,204.51,204.47,7.72]
[1757008481024,8.0,204.51,204.43,7.72]
[1757008481230,8.0,204.51,204.45,7.72]
[1757008481438,3.04759292,204.52,204.47,7.72]
[1757008481631,0.03208734,204.52,204.43,7.72]
[1757008481932,0.03208734,204.52,204.45,7.72]
[1757008482126,0.03208734,204.52,204.47,7.72]
[1757008482325,0.03208734,204.52,204.48,8.4079035]
[1757008482525,0.03208734,204.52,204.5,7.72]
[1757008482726,0.03208734,204.52,204.45,7.72]
[1757008482922,0.03208734,204.52,204.46,8.40769261]
[1757008483126,0.03208734,204.52,204.47,8.40769261]
[1757008483321,0.03208734,204.52,204.49,7.72]
[1757008483526,0.03208734,204.52,204.45,7.72]
[1757008483728,8.03208734,204.52,204.46,8.40845059]
[1757008483931,0.03208734,204.52,204.48,7.72]
[1757008484129,0.03208734,204.52,204.44,7.72]
[1757008484433,0.03208734,204.52,204.41,3.01550558]
[1757008484434,0.03208734,204.52,204.46,7.72]
[1757008485029,0.03208734,204.52,204.48,7.72]
[1757008485229,0.03208734,204.52,204.41,7.12991626]
[1757008485429,0.03208734,204.52,204.43,7.72]
[1757008485631,0.03208734,204.52,204.45,7.72]
[1757008485831,0.03208734,204.52,204.47,7.72]
[1757008486033,0.03208734,204.52,204.43,7.72]
[1757008486226,0.03208734,204.52,204.45,7.72]
[1757008486430,0.03208734,204.52,204.47,7.72]
[1757008487031,0.03208734,204.52,204.45,7.72]
[1757008487226,0.03208734,204.52,204.47,7.72]
[1757008487422,0.03208734,204.52,204.45,7.72]
[1757008487628,0.03208734,204.52,204.46,8.40940181]
[1757008487824,0.03208734,204.52,204.48,7.73]
[1757008488132,0.03208734,204.52,204.45,7.73]
[1757008488330,0.03208734,204.52,204.47,7.73]
[1757008488534,0.03208734,204.52,204.45,7.73]
[1757008488730,0.03208734,204.52,204.46,8.409571]
[1757008489035,0.03208734,204.52,204.48,7.73]
[1757008489233,0.03208734,204.52,204.45,7.73]
[1757008489532,0.03208734,204.52,204.47,7.73]
[1757008489835,0.03208734,204.52,204.49,7.73]
[1757008490331,0.03208734,204.52,204.45,7.73]
[1757008490531,0.03208734,204.52,204.46,8.40930696]
[1757008490730,0.03208734,204.52,204.48,7.73]
[1757008490930,0.03208734,204.52,204.45,7.73]
[1757008491231,0.03208734,204.52,204.46,8.40930696]
[1757008491427,0.03208734,204.52,204.47,8.40930696]
[1757008491628,0.03208734,204.52,204.49,7.73]
[1757008492529,0.03208734,204.52,204.44,3.01550558]
[1757008492736,7.46,204.51,204.45,16.14039846]
[1757008492937,7.46,204.51,204.46,4.53065979]
[1757008493135,7.46,204.51,204.44,7.73]
[1757008493336,7.46,204.51,204.45,8.41077872]
[1757008493533,3.01550558,204.49,204.42,7.73]
[1757008493840,7.46,204.48,204.42,7.73]
[1757008494133,7.49183488,204.48,204.42,7.73]
[1757008496233,3.01550558,204.46,204.42,7.73]
[1757008496434,3.01550558,204.46,204.36,4.11441068]
[1757008496435,3.01550558,204.46,204.37,7.73]
[1757008496630,3.01550558,204.46,204.39,7.73]
[1757008496835,3.01550558,204.46,204.4,8.35773996]
[1757008497037,0.03551992,204.45,204.41,4.52621975]
[1757008497232,0.03551992,204.45,204.37,7.73]
[1757008497434,0.03551992,204.45,204.39,7.73]
[1757008497731,0.03551992,204.45,204.41,7.73]
[1757008497932,0.03551992,204.45,204.39,7.73]
[1757008498139,0.03551992,204.45,204.4,8.35792269]
[1757008498337,0.03551992,204.45,204.42,7.73]
[1757008498532,0.03551992,204.45,204.38,3.01550558]
[1757008498737,0.03551992,204.45,204.39,16.08946182]
[1757008498941,0.03551992,204.45,204.4,8.35946182]
[1757008499141,0.03551992,204.45,204.42,7.73]
[1757008499443,0.03551992,204.45,204.39,7.73]
[1757008499638,0.03551992,204.45,204.4,8.36042931]
[1757008499840,0.03551992,204.45,204.42,7.73]
[1757008500041,0.03551992,204.45,204.39,7.73]
[1757008500242,0.03551992,204.45,204.4,8.36042931]
[1757008500443,0.03551992,204.45,204.38,3.01550558]
[1757008500444,0.03551992,204.45,204.42,7.73]
[1757008500643,0.03551992,204.45,204.39,7.73]
[1757008500841,0.03551992,204.45,204.41,7.73]
[1757008501040,7.49551992,204.45,204.42,7.73]
[1757008501543,7.49551992,204.45,204.37,7.73]
[1757008501743,7.49551992,204.45,204.38,8.3631812]
[1757008501949,7.49551992,204.45,204.39,8.3631812]
[1757008502144,7.46,204.42,204.37,7.73]
[1757008502443,10.47550558,204.43,204.37,7.73]
[1757008504647,10.47550558,204.43,204.32,7.73]
[1757008504849,10.47550558,204.43,204.34,7.73]
[1757008505045,10.47550558,204.43,204.35,8.35782131]
[1757008505346,10.47550558,204.4,204.3,7.73]
[1757008505648,3.01550558,204.37,204.31,8.35411557]
[1757008505849,3.01550558,204.37,204.27,4.11441068]
[1757008505850,10.47550558,204.37,204.33,7.73]
[1757008506144,10.51221786,204.37,204.33,7.73]
[1757008506544,10.51221786,204.37,204.26,322.16991626]
[1757008506848,0.03671228,204.37,204.3,7.73]
[1757008507149,0.03671228,204.37,204.32,7.73]
[1757008507445,0.03671228,204.37,204.3,7.73]
[1757008507638,0.03671228,204.37,204.31,3.82806489]
[1757008507842,0.03671228,204.37,204.3,7.73]
[1757008508042,0.03671228,204.37,204.32,7.73]
[1757008508247,0.03671228,204.37,204.3,7.73]
[1757008508442,0.03671228,204.37,204.31,3.82688459]
[1757008508640,0.03671228,204.37,204.3,7.73]
[1757008508840,0.03671228,204.37,204.32,7.73]
[1757008509044,0.03671228,204.37,204.3,7.73]
[1757008509239,0.03671228,204.37,204.32,7.73]
[1757008509449,0.03671228,204.37,204.3,7.73]
[1757008510049,0.03671228,204.37,204.31,4.51741495]
[1757008510346,0.03671228,204.37,204.3,7.73]
[1757008511952,0.03671228,204.37,204.32,7.73]
[1757008512252,0.03671228,204.37,204.3,7.73]
[1757008512552,0.03671228,204.37,204.32,7.73]
[1757008512752,0.03671228,204.37,204.3,7.73]
[1757008513051,0.03671228,204.37,204.31,4.51397343]
[1757008513251,0.03671228,204.37,204.3,7.73]
[1757008515047,0.03671228,204.37,204.32,3.01550558]
[1757008515252,0.03671228,204.37,204.33,7.73]
[1757008515652,0.03671228,204.37,204.33,3.01550558]
[1757008515853,0.03671228,204.37,204.34,7.73]
[1757008518556,14.7,204.48,204.26,315.04]
[1757008518557,8.0,204.48,204.37,7.68]
[1757008518757,8.0,204.48,204.38,7.68]
[1757008519756,8.0,204.48,204.41,0.03695459]
[1757008519956,8.0,204.48,204.41,7.71695459]
[1757008521954,8.0,204.52,204.41,7.71695459]
[1757008522361,8.0,204.52,204.44,7.68]
[1757008522956,8.0,204.52,204.46,0.03525056]
[1757008523458,8.0,204.52,204.47,7.68]
[1757008523662,3.01550558,204.55,204.47,7.68]
[1757008524360,8.0,204.54,204.47,7.68]
[1757008527866,8.0,204.51,204.46,0.03525056]
[1757008528061,3.01550558,204.52,204.46,0.03525056]
[1757008528262,8.0,204.51,204.46,0.03525056]
[1757008528461,3.01550558,204.52,204.46,0.03525056]
[1757008528660,8.0,204.51,204.46,0.03525056]
[1757008529066,3.01550558,204.52,204.46,0.03525056]
[1757008529266,8.0,204.51,204.46,0.03525056]
[1757008529760,3.01550558,204.52,204.46,0.03525056]
[1757008531366,8.0,204.51,204.46,0.03525056]
[1757008531566,9.93003693,204.49,204.46,0.03525056]
[1757008531768,8.0,204.48,204.46,0.03525056]
[1757008533064,1.93003693,204.49,204.46,7.71525056]
[1757008533274,1.93003693,204.51,204.47,7.68]
[1757008533467,9.93003693,204.51,204.47,7.68]
[1757008533767,8.0,204.51,204.47,0.03249822]
[1757008533974,8.0,204.55,204.48,7.68]
[1757008534173,8.0,204.52,204.48,7.68]
[1757008534471,8.0,204.52,204.47,0.03249822]
[1757008534768,8.0,204.52,204.48,7.68]
[1757008535767,8.0,204.52,204.47,0.03249822]
[1757008535970,8.0,204.52,204.48,7.68]
[1757008536770,8.0,204.52,204.47,0.03249822]
[1757008536971,8.0,204.52,204.48,7.68]
[1757008537162,8.0,204.52,204.47,0.03249822]
[1757008537569,1.93003693,204.53,204.47,0.03249822]
[1757008537871,8.0,204.52,204.47,0.03249822]
[1757008538566,9.93003693,204.53,204.47,0.03249822]
[1757008539669,1.93003693,204.51,204.47,0.03249822]
[1757008539876,8.0,204.5,204.47,0.03249822]
[1757008540773,1.93003693,204.51,204.47,0.03249822]
[1757008541173,8.0,204.5,204.47,0.03249822]
[1757008542272,1.93003693,204.51,204.47,0.03249822]
[1757008542570,9.93003693,204.51,204.48,7.68]
[1757008543278,1.93003693,204.51,204.47,0.03249822]
[1757008543470,8.0,204.5,204.47,0.03249822]
[1757008543972,1.93003693,204.51,204.47,0.03249822]
[1757008544472,1.93003693,204.49,204.47,0.03249822]
[1757008544678,8.0,204.48,204.47,0.03249822]
[1757008548777,8.48,204.48,204.47,0.03249822]
[1757008549171,8.48,204.48,204.39,8.03]
[1757008549378,1.93003693,204.43,204.39,8.03]
[1757008549576,7.91,204.42,204.39,8.03]
[1757008550877,0.03351167,204.43,204.4,1.93003693]
[1757008551268,0.03351167,204.43,204.42,8.03]
[1757008551568,0.03351167,204.43,204.36,4.4032]
[1757008551772,0.03351167,204.43,204.38,1.93003693]
[1757008551977,0.03351167,204.43,204.4,8.03]
[1757008552169,0.03351167,204.43,204.41,8.03]
[1757008552973,0.03351167,204.43,204.4,1.93003693]
[1757008553379,0.03351167,204.43,204.41,4.5256148]
[1757008553581,0.03351167,204.43,204.42,9.96003693]
[1757008554379,0.03351167,204.43,204.42,8.03]
[1757008554979,0.03351167,204.43,204.39,1.93003693]
[1757008555284,7.91,204.42,204.39,8.03]
[1757008555877,0.03351167,204.43,204.38,1.93003693]
[1757008556077,0.03351167,204.43,204.39,8.34540751]
[1757008556285,0.03351167,204.43,204.4,4.53036855]
[1757008556486,0.03351167,204.43,204.39,8.03]
[1757008556685,0.03351167,204.43,204.41,8.03]
[1757008560282,0.03351167,204.43,204.42,4.53567323]
[1757008560484,0.03351167,204.43,204.42,16.38897812]
[1757008561577,0.03351167,204.43,204.42,8.35897812]
[1757008561784,0.03351167,204.43,204.42,8.36158175]
[1757008562179,0.03351167,204.43,204.42,8.36435053]
[1757008562987,0.03351167,204.43,204.42,16.39435053]
[1757008563688,0.03351167,204.43,204.42,4.53827686]
[1757008565593,0.03351167,204.43,204.42,8.03]
[1757008565790,0.03351167,204.43,204.42,12.57251239]